bitfinex/quotes_ETHUSD_20251226
["timestamp","ask_amount","ask_price","bid_price","bid_amount"]
[1766721979084,0.9164,2953.3,2952.4,0.3088]
[1766721979385,0.9164,2953.3,2952.3,4.27512772]
[1766721979386,0.9164,2953.3,2952.5,0.76719277]
[1766721980665,3.38615738,2953.2,2952.5,0.76719277]
[1766721981187,4.30055738,2953.2,2952.5,0.76719277]
[1766721981573,0.9144,2953.2,2952.5,0.76719277]
[1766721981884,0.9144,2953.2,2952.6,0.34266845]
[1766721982050,3.38809778,2953.3,2952.6,0.34266845]
[1766721982455,0.002,2953.3,2952.7,0.3088]
[1766721982755,0.002,2953.3,2952.8,0.34266616]
[1766721982981,5.18826762,2953.5,2952.8,0.34266616]
[1766721983181,8.57413524,2953.5,2952.8,0.3088]
[1766721985085,5.18826762,2953.5,2952.8,0.3088]
[1766721985297,5.18824257,2953.5,2952.9,0.34066501]
[1766721985599,0.888,2953.5,2952.9,0.34066501]
[1766721985800,3.38564237,2953.7,2953.1,0.3048]
[1766721985961,3.38564237,2953.7,2953.1,0.33866272]
[1766721986162,0.9144,2953.8,2953.1,0.33866272]
[1766721986367,4.27326256,2954.0,2953.1,0.33866272]
[1766721986764,3.38670199,2954.5,2953.3,23.51858146]
[1766721986765,3.38673426,2954.5,2953.3,23.51858146]
[1766721986995,3.38673426,2954.5,2953.7,0.3048]
[1766721987197,0.002,2954.5,2953.8,0.33865469]
[1766721987393,4.29891829,2954.7,2953.8,0.33865469]
[1766721987694,0.9144,2954.6,2953.6,0.888]
[1766721987868,0.9144,2954.5,2953.5,0.3028]
[1766721988898,0.51869183,2954.6,2953.7,0.3028]
[1766721989196,4.29890676,2954.7,2953.8,0.3028]
[1766721990700,4.29887578,2954.7,2953.8,0.3028]
[1766721991078,0.9144,2954.7,2953.9,0.3028]
[1766721992169,4.29887037,2954.7,2953.9,0.3028]
[1766721993102,7.68334074,2954.7,2953.9,0.3028]
[1766721993266,0.9144,2954.6,2953.9,0.3028]
[1766721994180,0.002,2954.7,2954.0,0.0338524]
[1766721994380,3.38609488,2955.0,2954.1,0.2988]
[1766721994684,4.30049488,2955.0,2954.0,0.2988]
[1766721994876,0.9144,2954.9,2954.1,0.3684152]
[1766721995076,3.38432381,2954.8,2954.2,0.03385011]
[1766721995476,4.29872381,2954.8,2954.2,0.03385011]
[1766721995678,7.68304762,2954.8,2954.2,0.03385011]
[1766721995873,0.9144,2954.7,2954.1,0.2988]
[1766721996204,0.9144,2954.7,2953.9,0.2988]
[1766721996405,0.9144,2954.7,2954.0,0.45722347]
[1766721996599,0.9144,2954.7,2954.0,0.75602347]
[1766721997507,4.29884462,2954.7,2954.0,0.75602347]
[1766721997806,0.9144,2954.7,2954.0,0.75602347]
[1766721998374,3.38426183,2954.9,2954.1,0.33265125]
[1766721998577,0.9144,2954.9,2954.2,0.2988]
[1766721998823,0.002,2955.0,2954.4,0.2988]
[1766721999004,0.002,2955.2,2954.6,0.2968]
[1766722000123,0.002,2955.2,2954.7,0.33064438]
[1766722000683,0.002,2955.2,2954.7,0.70217431]
[1766722000914,0.002,2955.2,2954.7,0.33064438]
[1766722001442,0.002,2954.9,2954.7,0.33064438]
[1766722003912,0.002,2955.2,2954.7,0.33064438]
[1766722005923,0.002,2955.2,2954.7,0.03384438]
[1766722006126,0.002,2955.2,2954.4,0.2948]
[1766722006350,0.002,2955.2,2954.6,0.2948]
[1766722007645,0.002,2955.2,2954.7,0.03384438]
[1766722008042,0.9699,2955.2,2954.6,0.2948]
[1766722008243,0.9699,2955.2,2954.4,0.888]
[1766722008648,0.9699,2955.2,2954.5,0.2948]
[1766722009956,4.35377328,2955.2,2954.5,0.2948]
[1766722010122,0.9699,2955.2,2954.5,0.2948]
[1766722010441,4.35377212,2955.2,2954.6,0.75155721]
[1766722010641,4.35377212,2955.2,2954.6,0.2948]
[1766722011947,0.9679,2955.1,2954.1,0.2948]
[1766722012254,0.9679,2955.1,2954.0,0.75302347]
[1766722012459,0.9679,2955.1,2954.0,0.2958]
[1766722013738,0.9679,2955.1,2954.1,0.32865125]
[1766722014140,0.9679,2954.9,2954.1,0.32865125]
[1766722014936,0.9679,2954.9,2954.1,0.2948]
[1766722015142,0.9679,2954.9,2954.2,0.03385011]
[1766722015343,0.9679,2954.8,2954.2,0.03385011]
[1766722015950,0.9679,2954.8,2954.1,0.2948]
[1766722016165,4.35233835,2954.7,2954.1,0.2948]
[1766722016687,3.38443835,2954.7,2954.0,0.001]
[1766722016888,0.9679,2954.6,2954.0,0.001]
[1766722017296,0.9679,2954.6,2954.0,0.2958]
[1766722018154,4.35250146,2954.6,2954.0,0.2958]
[1766722018354,0.9679,2954.6,2954.0,0.2958]
[1766722019198,4.35246341,2954.6,2954.0,0.2958]
[1766722019401,0.9679,2954.6,2954.0,0.2958]
[1766722020592,0.9679,2954.6,2954.1,0.03385125]
[1766722020799,0.9679,2954.5,2954.0,0.001]
[1766722020953,0.9679,2954.4,2953.4,0.2948]
[1766722021789,0.9679,2954.4,2952.8,3.3876148]
[1766722021960,0.9679,2954.2,2953.2,3.38607988]
[1766722022155,0.9679,2954.0,2953.3,0.32866042]
[1766722022393,0.9679,2954.0,2953.3,0.32666042]
[1766722025162,0.9358231,2954.0,2953.3,0.32666042]
[1766722026403,4.35282568,2954.3,2953.4,0.3268]
[1766722026603,0.43528257,2954.2,2953.5,0.35865813]
[1766722027480,0.888,2954.5,2953.6,0.3268]
[1766722027481,0.9679,2954.4,2953.6,0.3268]
[1766722027789,0.9679,2954.4,2953.5,3.41766092]
[1766722027790,0.888,2954.5,2953.8,0.3268]
[1766722028189,4.27271449,2954.5,2953.8,0.3268]
[1766722029198,4.27271449,2954.5,2953.9,0.36065354]
[1766722029409,5.18625035,2954.5,2953.9,0.36065354]
[1766722030098,5.15407898,2954.5,2953.9,0.36065354]
[1766722030700,1.76936449,2954.5,2953.9,0.36065354]
[1766722030870,0.91353586,2954.5,2953.9,0.36065354]
[1766722031070,4.86277669,2954.6,2953.9,0.36065354]
[1766722031473,4.86277669,2954.6,2953.9,0.3268]
[1766722032180,7.27952977,2954.6,2953.9,0.3268]
[1766722032380,0.9679,2954.5,2953.5,0.001]
[1766722032580,7.27952977,2954.6,2953.5,0.2365]
[1766722032581,0.9679,2954.3,2953.5,0.2365]
[1766722033279,3.38501117,2954.2,2953.5,0.2365]
[1766722033484,0.9679,2954.1,2953.5,0.2365]
[1766722034010,0.82474298,2954.4,2953.6,0.2355]
[1766722034182,0.9129,2954.3,2953.6,0.26935698]
[1766722035578,0.9129,2954.2,2953.5,0.001]
[1766722037438,0.9129,2954.2,2953.5,0.2365]
[1766722037616,4.29795395,2954.2,2953.5,0.2365]
[1766722037781,0.9129,2954.6,2953.6,0.26935698]
[1766722037988,4.29739033,2954.7,2953.6,0.26935698]
[1766722038285,4.29739033,2954.7,2953.8,0.2355]
[1766722038507,4.29739033,2954.7,2954.0,0.2355]
[1766722040412,3.38437304,2954.8,2954.1,0.2355]
[1766722040413,0.9129,2954.8,2954.1,0.2355]
[1766722040712,0.002,2955.1,2953.9,0.888]
[1766722040713,3.38600612,2955.1,2953.9,0.888]
[1766722040882,0.9129,2955.0,2954.0,0.0338524]
[1766722041087,0.9129,2955.0,2953.9,0.888]
[1766722041501,0.9129,2954.8,2953.5,0.001]
[1766722041708,0.9129,2954.6,2953.7,0.888]
[1766722042589,0.9129,2954.6,2953.8,0.888]
[1766722042791,0.9129,2954.8,2953.8,0.888]
[1766722043021,0.9129,2954.8,2953.9,0.42735842]
[1766722043696,4.29733835,2954.7,2953.9,0.42735842]
[1766722043898,0.9129,2954.7,2953.9,3.81271258]
[1766722044198,0.9129,2954.7,2954.0,0.84246955]
[1766722044590,4.29920829,2954.9,2954.0,0.84246955]
[1766722045342,0.9129,2954.8,2954.0,0.84246955]
[1766722045688,0.9129,2954.8,2954.0,4.22770065]
[1766722046715,0.9129,2954.7,2954.0,0.80861715]
[1766722047417,0.9129,2954.7,2954.1,0.41939359]
[1766722048025,0.9129,2954.7,2954.2,0.03385011]
[1766722048227,0.9129,2954.7,2954.3,0.888]
[1766722049114,4.29737862,2954.7,2954.3,0.888]
[1766722049315,0.9129,2954.7,2954.3,0.888]
[1766722049822,4.2973405,2954.7,2954.3,0.888]
[1766722051437,3.3844405,2954.7,2954.3,0.888]
[1766722051606,0.9129,2954.6,2954.3,0.888]
[1766722052300,3.38626231,2954.9,2954.3,0.888]
[1766722052503,0.9129,2954.8,2954.3,0.888]
[1766722055031,0.9129,2954.7,2954.3,0.888]
[1766722056538,0.9129,2954.6,2953.6,0.885]
[1766722057036,0.9129,2954.4,2953.6,0.885]
[1766722057347,0.9129,2954.4,2953.6,1.0065]
[1766722057922,0.9129,2954.4,2953.6,0.1215]
[1766722058119,0.9129,2954.4,2953.6,0.68942109]
[1766722058326,0.9129,2954.4,2953.7,0.1215]
[1766722059421,0.9129,2954.3,2953.5,3.38675585]
[1766722059730,0.9129,2954.3,2953.6,0.1215]
[1766722062051,0.76835389,2954.7,2953.5,0.001]
[1766722062052,0.955,2954.6,2953.5,0.001]
[1766722062250,0.955,2954.5,2953.5,3.38675402]
[1766722062632,0.955,2954.5,2953.6,3.3856815]
[1766722063619,0.955,2954.5,2953.6,4.2736815]
[1766722064434,0.9812,2954.5,2953.7,0.03385584]
[1766722065648,0.9812,2954.5,2953.6,11.6638364]
[1766722065852,0.9812,2954.5,2953.7,1.16648364]
[1766722066555,0.9812,2954.5,2953.7,4.55196273]
[1766722066762,4.36588852,2954.5,2953.7,5.43996273]
[1766722067056,0.9812,2954.4,2953.7,5.43996273]
[1766722067257,0.9812,2954.4,2953.8,0.54399627]
[1766722069926,0.9812,2954.4,2953.8,3.9294637]
[1766722070348,0.9812,2954.4,2953.8,0.54399627]
[1766722070651,0.9812,2954.4,2953.8,3.92945508]
[1766722071021,0.9832,2954.4,2953.8,3.92945508]
[1766722071251,0.9832,2954.4,2953.9,0.39294551]
[1766722072661,0.9832,2954.4,2954.0,0.0338524]
[1766722072857,0.002,2954.4,2954.0,0.0338524]
[1766722075866,0.9812,2954.3,2953.3,3.38598144]
[1766722076179,0.9812,2954.3,2953.0,0.888]
[1766722076180,0.9812,2954.1,2953.2,3.38609456]
[1766722076472,0.9812,2953.9,2952.8,3.38752451]
[1766722076637,0.9812,2953.7,2952.9,3.38643891]
[1766722076834,0.9812,2953.7,2952.8,0.889]
[1766722076835,0.9812,2953.7,2953.0,3.38638426]
[1766722077263,0.9812,2953.7,2953.1,3.42011172]
[1766722077980,3.42098266,2954.1,2953.1,6.80638377]
[1766722078138,0.03585255,2954.1,2953.4,4.0044561]
[1766722078339,0.9812,2954.6,2953.6,4.0044561]
[1766722078544,1.01705255,2954.6,2953.7,0.52648726]
[1766722078974,4.40161761,2954.6,2953.7,0.52648726]
[1766722079273,3.4205453,2954.5,2953.7,0.52648726]
[1766722079454,0.9832,2954.4,2953.6,0.888]
[1766722079644,1.01705255,2954.3,2953.6,0.888]
[1766722079968,1.01705255,2954.3,2953.6,4.27362098]
[1766722080179,0.9812,2954.3,2953.6,0.888]
[1766722080384,0.9812,2954.3,2953.7,3.38557451]
[1766722080559,0.03785255,2954.4,2953.7,3.38557451]
[1766722080560,0.03785255,2954.4,2953.8,0.42735745]
[1766722080761,0.002,2954.4,2953.9,0.03385354]
[1766722083173,0.002,2954.4,2953.9,3.41914334]
[1766722083546,0.002,2954.4,2953.9,0.03385354]
[1766722084679,0.002,2954.4,2953.9,3.41920166]
[1766722084976,0.002,2954.4,2954.0,0.38465591]
[1766722085277,0.002,2954.4,2954.1,0.03385125]
[1766722086874,0.002,2954.4,2953.8,3.81278452]
[1766722087074,0.002,2954.4,2953.9,0.001]
[1766722087482,0.002,2954.4,2953.9,3.3863354]
[1766722087652,0.002,2954.4,2954.0,0.38136929]
[1766722088081,0.9832,2954.9,2954.1,0.03385125]
[1766722088384,0.002,2955.1,2954.3,4.0044561]
[1766722088697,0.002,2955.1,2954.4,0.52309343]
[1766722088984,0.002,2955.1,2954.4,0.03384782]
[1766722089280,0.002,2955.1,2954.3,0.03384896]
[1766722089483,0.002,2955.1,2954.4,0.03384782]
[1766722089652,0.9832,2955.1,2954.3,0.03384896]
[1766722090251,0.9832,2955.1,2954.3,3.41868375]
[1766722090452,0.9832,2955.1,2954.4,0.43066838]
[1766722090649,0.9832,2955.1,2954.5,0.03384667]
[1766722091253,0.002,2955.1,2954.5,0.03384667]
[1766722092684,0.002,2955.1,2954.5,3.41845736]
[1766722095088,4.27343245,2955.6,2954.7,4.0044561]
[1766722095089,0.89,2955.6,2954.7,4.0044561]
[1766722095292,1.8047,2955.6,2954.8,0.03384323]
[1766722095488,0.9147,2955.5,2954.8,0.03384323]
[1766722095957,0.9147,2955.5,2954.6,4.72784688]
[1766722096162,0.002,2955.1,2954.7,1.1497125]
[1766722097765,0.002,2955.6,2954.8,8.27677991]
[1766722097959,0.002,2955.6,2954.9,0.03384209]
[1766722098187,0.002,2955.6,2955.0,4.0044561]
[1766722098394,0.002,2955.6,2955.1,0.43766962]
[1766722098563,0.002,2955.6,2955.1,0.0338398]
[1766722098762,0.002,2955.6,2954.9,0.03384209]
[1766722099460,0.002,2955.6,2955.0,4.0044561]
[1766722099781,0.9167,2955.6,2954.9,3.38410515]
[1766722099985,0.9167,2955.6,2955.0,4.94891134]
[1766722100160,0.002,2955.6,2955.1,3.41780749]
[1766722101200,0.002,2955.8,2955.1,3.41780749]
[1766722101563,3.38519278,2955.8,2955.1,0.0338398]
[1766722101775,3.38519278,2955.8,2955.0,4.94890361]
[1766722102263,0.9167,2955.8,2955.1,0.52873016]
[1766722102864,0.9167,2955.8,2955.1,0.49489036]
[1766722103080,0.9167,2955.8,2955.1,1.38289036]
[1766722103801,0.9167,2955.8,2955.2,0.03383865]
[1766722103978,0.002,2955.8,2955.2,0.03383865]
[1766722104991,0.002,2955.8,2955.2,0.85231076]
[1766722105298,0.002,2955.8,2955.2,5.12417524]
[1766722107295,3.38487327,2956.1,2955.2,5.12417524]
[1766722107618,0.9167,2956.1,2955.2,5.12417524]
[1766722107769,0.9147,2956.0,2955.2,5.12417524]
[1766722109002,4.29765362,2956.0,2955.2,5.12417524]
[1766722109493,0.9147,2955.9,2955.2,1.74031076]
[1766722109695,0.9147,2955.9,2955.2,0.03383865]
[1766722109910,0.9147,2955.9,2954.5,13.208058]
[1766722110127,0.9147,2955.9,2954.8,3.38428324]
[1766722110329,0.9147,2955.9,2954.8,0.888]
[1766722110515,0.9147,2955.9,2954.6,3.38445506]
[1766722110699,0.9147,2955.9,2954.6,0.888]
[1766722110894,0.9147,2955.7,2954.5,3.38461026]
[1766722111099,0.9147,2955.5,2954.5,0.888]
[1766722112410,0.9147,2955.5,2954.1,19.815234]
[1766722112617,0.9147,2955.5,2954.2,0.888]
[1766722112798,0.9147,2955.4,2954.4,29.66504]
[1766722112997,0.9147,2955.4,2954.6,3.3845529]
[1766722113198,0.9147,2955.4,2954.7,0.03384438]
[1766722113394,0.9147,2955.7,2954.7,0.03384438]
[1766722114605,0.9147,2955.7,2954.8,16.894033]
[1766722114805,0.9147,2955.7,2954.9,0.03384209]
[1766722115006,0.9147,2955.7,2955.0,0.03384094]
[1766722115207,0.9147,2955.7,2954.8,6.76864762]
[1766722115405,0.9147,2955.7,2954.9,0.71409129]
[1766722116124,0.9167,2955.9,2954.9,0.71409129]
[1766722117309,0.9167,2955.9,2955.0,6.7681895]
[1766722117504,0.002,2955.9,2955.1,0.9218398]
[1766722118636,0.9167,2955.9,2955.1,0.9218398]
[1766722118854,0.9147,2955.8,2955.2,0.76900293]
[1766722119002,0.9147,2955.8,2955.3,0.03383751]
[1766722119344,0.9167,2955.8,2955.3,0.03383751]
[1766722120324,0.002,2955.9,2955.3,0.03383751]
[1766722122930,0.002,2955.9,2955.3,3.41758661]
[1766722123131,0.002,2955.9,2955.3,4.26344099]
[1766722125506,0.9167,2956.1,2955.3,4.26344099]
[1766722126512,0.002,2956.3,2955.3,7.64719221]
[1766722126837,0.002,2956.3,2955.3,7.6133547]
[1766722127024,0.002,2956.3,2955.4,1.09971864]
[1766722127224,0.002,2956.3,2955.5,0.03383522]
[1766722127447,0.002,2956.3,2955.6,3.38340776]
[1766722127635,0.002,2955.9,2955.7,0.03383293]
[1766722130445,0.002,2955.9,2955.7,3.41710317]
[1766722130644,0.9734,2956.3,2955.7,0.71389488]
[1766722130846,0.9734,2956.3,2955.8,0.03383178]
[1766722132311,0.002,2956.3,2955.8,0.03383178]
[1766722133656,0.002,2956.4,2955.8,0.03383178]
[1766722133855,0.9714,2956.3,2955.7,0.887]
[1766722134760,0.9714,2956.3,2955.8,0.03483178]
[1766722135334,0.9734,2956.3,2955.8,0.03483178]
[1766722136994,0.9734,2956.3,2955.8,0.001]
[1766722138388,0.9734,2956.3,2955.8,0.03483178]
[1766722139802,0.9734,2956.3,2955.8,0.001]
[1766722139958,0.9714,2956.2,2955.8,0.001]
[1766722140155,0.9714,2956.2,2955.0,0.001]
[1766722140356,0.9714,2956.2,2955.2,3.38380465]
[1766722140573,0.9714,2956.2,2955.3,3.38374948]
[1766722140772,0.9714,2956.2,2955.4,3.38361098]
[1766722141254,0.9714,2956.2,2955.6,3.38332704]
[1766722141470,0.9734,2956.3,2955.7,0.03383293]
[1766722141779,0.9734,2956.3,2955.4,3.38354127]
[1766722142157,0.9734,2956.3,2955.4,6.767178]
[1766722142356,0.9734,2956.3,2955.5,0.78710021]
[1766722142560,0.9734,2956.3,2955.5,0.75326499]
[1766722143186,0.9734,2956.3,2955.6,0.03383407]
[1766722143690,0.9734,2956.3,2955.7,3.38329329]
[1766722143910,0.9734,2956.3,2955.8,0.03383178]
[1766722144093,0.9734,2956.3,2955.8,0.37554429]
[1766722144902,0.9734,2956.3,2955.8,0.34171251]
[1766722145666,0.9734,2956.3,2955.9,0.03383064]
[1766722146505,0.9734,2956.8,2955.9,3.41689329]
[1766722146670,0.9734,2956.8,2956.0,0.37586058]
[1766722146870,0.9714,2956.7,2956.1,0.03382835]
[1766722150677,0.002,2956.8,2956.1,0.03382835]
[1766722151000,0.002,2956.7,2956.1,3.41665109]
[1766722151201,0.002,2956.7,2956.2,0.37935117]
[1766722151375,0.002,2956.7,2956.3,0.03382606]
[1766722152705,0.9734,2956.7,2956.3,0.03382606]
[1766722152909,0.9714,2956.5,2956.0,0.001]
[1766722153209,0.9714,2956.3,2955.5,0.887]
[1766722153404,0.9714,2956.1,2955.5,1.69969777]
[1766722153600,0.9714,2956.1,2955.5,0.81269777]
[1766722153800,0.9714,2956.1,2955.6,3.38332809]
[1766722153987,0.9201,2956.3,2955.7,3.38326926]
[1766722154315,0.9201,2956.3,2955.6,3.38337249]
[1766722154615,0.9201,2956.3,2955.7,3.80290027]
[1766722155503,0.9201,2956.3,2955.7,0.41960703]
[1766722156205,0.03382606,2956.5,2955.8,0.03383178]
[1766722156410,0.9201,2956.4,2955.4,4.27052796]
[1766722156724,0.9201,2956.2,2955.5,5.0359304]
[1766722156929,0.9201,2956.2,2955.5,4.27050305]
[1766722157287,0.9201,2956.2,2955.6,3.38338442]
[1766722157609,0.95392606,2956.5,2955.7,0.03383293]
[1766722157913,3.38421271,2956.7,2955.7,0.03383293]
[1766722158114,0.03382606,2956.6,2955.8,0.68006251]
[1766722158326,0.9221,2956.7,2955.9,0.03383064]
[1766722158931,0.002,2956.7,2956.0,26.35275]
[1766722159228,0.9201,2956.7,2956.1,2.63865806]
[1766722159392,6.79990829,2956.8,2956.0,0.887]
[1766722159393,0.9201,2956.5,2956.0,0.887]
[1766722159587,0.9201,2956.5,2955.8,0.68006251]
[1766722159799,0.95392606,2956.5,2955.8,0.68006251]
[1766722159999,0.03382606,2956.6,2955.9,0.49503422]
[1766722160999,3.41610017,2956.6,2955.9,0.49503422]
[1766722161204,4.33620017,2956.6,2955.9,0.49503422]
[1766722161920,0.03382606,2956.6,2955.9,0.49503422]
[1766722162237,0.9201,2956.5,2956.0,0.38781701]
[1766722162397,0.9201,2956.5,2955.8,4.27016859]
[1766722162598,0.9201,2956.5,2955.8,3.38316859]
[1766722163533,0.9201,2956.5,2955.7,4.27025402]
[1766722163730,0.95392606,2956.4,2955.6,0.001]
[1766722163917,0.95392606,2956.4,2955.7,0.887]
[1766722165024,0.95392606,2956.4,2955.6,0.001]
[1766722165332,0.95392606,2956.4,2955.7,0.887]
[1766722166237,0.95392606,2956.4,2955.8,3.38317883]
[1766722166550,0.95392606,2956.4,2955.9,0.42701788]
[1766722166764,0.95392606,2956.4,2956.0,0.03382949]
[1766722166950,0.9201,2956.4,2956.0,0.03382949]
[1766722168354,4.33642114,2956.4,2955.7,0.887]
[1766722168562,0.9201,2956.3,2955.8,0.001]
[1766722168757,0.9201,2956.1,2955.2,5.023535]
[1766722168930,0.95392606,2956.0,2955.3,3.38375037]
[1766722170034,0.95392606,2956.0,2955.4,3.38362803]
[1766722170439,0.43364211,2956.3,2955.4,3.38362803]
[1766722170756,0.9201,2956.5,2955.4,10.76660609]
[1766722171850,0.9201,2956.5,2955.4,6.76726476]
[1766722172764,0.9201,2956.4,2955.4,6.76726476]
[1766722172949,0.9201,2956.4,2955.5,0.71944621]
[1766722173256,0.9201,2956.4,2955.5,1.60644621]
[1766722174432,0.93026122,2956.4,2955.1,0.001]
[1766722174638,0.9201,2956.2,2955.1,3.41876429]
[1766722175957,0.9201,2956.2,2955.5,0.001]
[1766722177946,0.9201,2956.0,2955.5,0.001]
[1766722182873,0.9201,2955.9,2955.5,0.001]
[1766722183242,0.002,2956.8,2955.8,3.99934133]
[1766722183550,0.002,2956.8,2955.9,0.40095026]
[1766722183551,0.9201,2956.7,2955.9,0.40095026]
[1766722183750,0.9201,2956.7,2955.7,0.887]
[1766722183950,0.9201,2956.7,2955.6,0.887]
[1766722184156,0.002,2956.2,2955.6,4.27033924]
[1766722185549,0.9156,2956.2,2955.5,3.38447383]
[1766722185752,0.9156,2956.2,2955.6,1.56380385]
[1766722186255,0.9156,2956.2,2955.6,0.67680385]
[1766722186663,0.9156,2956.2,2955.6,4.06020875]
[1766722186976,0.9156,2956.2,2955.6,0.67680385]
[1766722188255,0.9156,2956.2,2955.7,0.03383293]
[1766722188457,0.9156,2956.2,2955.5,4.27145039]
[1766722188656,0.9156,2956.2,2955.5,5.0369687]
[1766722190984,0.9156,2956.2,2955.5,0.76651831]
[1766722192001,0.9156,2956.2,2955.5,4.15001956]
[1766722192904,0.9156,2956.2,2955.5,0.76651831]
[1766722194306,0.9156,2956.2,2955.5,4.15003937]
[1766722194485,0.9156,2956.2,2955.6,0.50370394]
[1766722194804,0.9156,2956.2,2955.6,0.53753801]
[1766722196804,0.002,2956.2,2955.6,3.92093249]
[1766722196984,0.002,2956.2,2955.6,3.88709842]
[1766722199084,0.9156,2956.8,2956.1,3.99934133]
[1766722199402,0.002,2957.0,2956.5,3.99934133]
[1766722199601,0.002,2957.1,2956.6,0.03382263]
[1766722199973,0.9156,2957.4,2956.7,4.03316282]
[1766722200200,0.9156,2957.4,2956.8,3.38203463]
[1766722200510,0.9156,2957.4,2956.9,0.0338192]
[1766722200676,0.002,2957.4,2956.9,0.71361925]
[1766722200882,0.002,2957.9,2957.1,3.99934133]
[1766722201075,0.002,2957.9,2957.2,0.03381577]
[1766722201276,0.002,2957.9,2956.9,5.56614138]
[1766722201481,0.9136,2957.8,2956.9,0.67980005]
[1766722201700,0.9136,2957.8,2957.0,0.83308693]
[1766722203106,0.9136,2957.8,2957.0,4.21478869]
[1766722204214,0.002,2957.9,2957.0,7.59659457]
[1766722204400,0.002,2957.9,2957.1,3.99934133]
[1766722204605,0.002,2957.9,2957.2,1.15959359]
[1766722206485,0.002,2957.9,2957.2,4.5411557]
[1766722206686,0.002,2957.9,2957.2,11.92207419]
[1766722206893,0.002,2958.0,2957.4,3.99934133]
[1766722207212,0.9136,2958.4,2957.6,3.99934133]
[1766722207424,0.9136,2958.4,2957.7,0.03381005]
[1766722207907,0.887,2958.5,2957.7,3.4147786]
[1766722208111,0.887,2958.5,2957.8,3.99934133]
[1766722208311,0.887,2958.5,2957.6,7.38041521]
[1766722208486,0.9136,2958.4,2957.6,0.817607]
[1766722208687,0.9136,2958.4,2957.6,4.19869406]
[1766722208882,0.9136,2958.4,2957.7,3.38100137]
[1766722209081,4.26710033,2958.5,2957.6,8.19802051]
[1766722209612,0.887,2958.5,2957.7,3.38096446]
[1766722209803,0.887,2958.5,2957.7,4.53887609]
[1766722209998,4.26709145,2958.5,2957.7,1.15791163]
[1766722211704,0.887,2958.5,2957.7,4.53891507]
[1766722211923,0.887,2958.5,2957.9,3.99934133]
[1766722212126,1.8006,2958.5,2957.7,1.15791163]
[1766722212304,0.9136,2958.4,2957.7,3.99934133]
[1766722213126,0.9136,2958.4,2957.9,3.99934133]
[1766722214325,1.8219,2958.5,2957.9,3.99934133]
[1766722215122,5.20200925,2958.5,2957.8,3.99934133]
[1766722215348,0.9329,2958.4,2957.8,3.99934133]
[1766722215719,0.9329,2958.4,2957.6,4.19868847]
[1766722215925,0.9329,2958.3,2957.6,0.817607]
[1766722216127,0.9329,2958.3,2957.7,3.99934133]
[1766722218126,0.889,2958.5,2958.1,3.99934133]
[1766722218525,0.9329,2958.5,2957.7,3.38096418]
[1766722218696,0.9329,2958.5,2957.8,0.03380891]
[1766722218896,0.9329,2958.5,2957.9,3.99934133]
[1766722220126,0.9329,2958.5,2958.0,0.03380662]
[1766722220317,0.9349,2958.5,2958.0,0.03380662]
[1766722220823,0.9329,2958.4,2957.6,0.001]
[1766722221026,0.9329,2958.4,2957.6,8.26836736]
[1766722221227,0.9329,2958.4,2957.7,0.03381005]
[1766722221399,0.9329,2958.4,2957.7,3.41480221]
[1766722221901,0.9329,2958.4,2957.8,3.99934133]
[1766722222111,0.9329,2958.4,2957.9,0.03380776]
[1766722224827,0.9329,2958.2,2957.4,11.065334]
[1766722225131,0.9329,2958.0,2957.4,3.38129048]
[1766722225606,0.9329,2958.0,2957.5,3.99934133]
[1766722225802,0.9329,2958.0,2957.7,3.99934133]
[1766722226129,0.9329,2958.0,2957.5,0.03381234]
[1766722226338,0.9329,2958.0,2957.5,3.41498839]
[1766722226523,0.96670791,2958.3,2957.5,4.54885521]
[1766722226937,4.34706214,2958.3,2957.2,0.887]
[1766722227122,0.9329,2958.2,2957.3,3.38142601]
[1766722227320,0.9329,2958.0,2957.6,0.001]
[1766722227530,0.9329,2957.8,2957.6,0.001]
[1766722228640,0.96670791,2958.2,2957.6,0.001]
[1766722228841,1.40161717,2958.2,2957.6,0.001]
[1766722229539,0.002,2958.4,2957.6,3.99448753]
[1766722229846,0.9349,2958.4,2957.6,3.99448753]
[1766722230837,0.9349,2958.4,2957.7,3.38100551]
[1766722231422,0.9349,2958.4,2957.8,0.03380891]
[1766722233640,0.9349,2958.4,2957.7,0.03381005]
[1766722233844,0.9349,2958.4,2957.7,1.11286552]
[1766722234042,0.9329,2958.3,2957.7,1.07905547]
[1766722235818,0.9329,2958.3,2957.7,4.46005871]
[1766722236019,0.9329,2958.3,2957.7,1.07905547]
[1766722236345,0.9329,2958.3,2957.8,0.44611216]
[1766722237728,0.9329,2958.3,2957.8,3.82699516]
[1766722238053,0.9329,2958.3,2957.9,0.03380776]
[1766722238949,0.002,2958.4,2957.9,0.03380776]
[1766722239350,0.002,2958.4,2957.9,3.41455139]
[1766722239657,0.002,2958.6,2958.0,5.11698583]
[1766722239844,0.002,2958.6,2958.1,0.03380548]
[1766722240047,0.002,2958.6,2957.9,7.37423116]
[1766722240240,0.9329,2958.8,2957.9,10.75500806]
[1766722240431,0.887,2959.0,2957.9,10.75500806]
[1766722240432,1.8199,2959.0,2958.2,3.99348753]
[1766722240637,1.8199,2959.0,2958.3,0.03380319]
[1766722241457,1.8199,2959.0,2958.3,3.41400972]
[1766722241865,1.8199,2959.0,2958.3,0.03380319]
[1766722242066,5.19944685,2959.0,2958.2,3.99348753]
[1766722242240,0.9452,2958.9,2958.3,0.7373997]
[1766722243054,0.002,2959.1,2958.4,0.03380205]
[1766722243252,0.9472,2959.1,2958.3,3.38029382]
[1766722243454,0.9472,2959.1,2958.4,0.03380205]
[1766722243657,0.002,2959.1,2958.4,0.67946701]
[1766722243835,0.9514,2959.1,2958.4,0.67946701]
[1766722244037,0.9514,2959.1,2958.2,3.38043404]
[1766722244232,0.9494,2959.0,2958.1,3.38050814]
[1766722244437,0.9494,2959.0,2958.2,2.494208]